bitfinex/quotes_BTCUSD_20250530
["timestamp","ask_amount","ask_price","bid_price","bid_amount"]
[1748571900497,0.22123636,106020.0,106010.0,1.40784133]
[1748571900711,0.22123636,106020.0,106010.0,1.4172744]
[1748571900914,0.22123636,106020.0,106010.0,1.41305887]
[1748571901145,0.19323636,106020.0,106010.0,0.84399724]
[1748571901378,0.19323636,106020.0,106010.0,0.49205395]
[1748571902115,0.19323636,106020.0,106010.0,0.09205395]
[1748571906584,0.19323636,106020.0,106010.0,0.09507128]
[1748571906824,0.19323636,106020.0,106010.0,0.00401733]
[1748571907519,0.19323636,106020.0,106010.0,0.001]
[1748571911122,0.20493465,106020.0,106010.0,0.001]
[1748571911533,0.19323636,106020.0,106010.0,0.001]
[1748571911748,0.19323636,106020.0,106010.0,0.00401746]
[1748571912410,0.19323636,106020.0,106010.0,0.001]
[1748571914140,0.19323636,106020.0,106010.0,0.00401746]
[1748571920920,0.19323636,106020.0,106010.0,0.001]
[1748571921339,0.19323636,106020.0,106010.0,0.00401744]
[1748571929713,0.19323636,106020.0,106010.0,0.00401741]
[1748571933858,0.19323636,106020.0,106010.0,0.00401762]
[1748571934098,0.62429031,106020.0,106010.0,0.00401762]
[1748571934327,1.01665031,106020.0,106010.0,0.001]
[1748571936761,1.01765031,106020.0,106010.0,0.001]
[1748571936979,0.20756611,105990.0,105980.0,0.00316594]
[1748571937189,0.20756611,105990.0,105980.0,0.09421989]
[1748571937658,0.20756611,105990.0,105980.0,0.09105395]
[1748571937860,0.20756611,105990.0,105980.0,0.09421989]
[1748571938069,0.20756611,105990.0,105980.0,0.09421727]
[1748571938489,0.20756611,105990.0,105980.0,0.09721727]
[1748571938921,0.20756611,105990.0,105980.0,0.10021727]
[1748571939354,0.20756611,105990.0,105980.0,0.09705395]
[1748571939779,0.20756611,105990.0,105980.0,0.15705395]
[1748571942728,0.01886898,105990.0,105980.0,1.15502277]
[1748571942964,0.22643554,105990.0,105980.0,1.143229]
[1748571943207,0.21700114,105990.0,105980.0,1.143229]
[1748571944876,0.21700114,105990.0,105980.0,1.14322918]
[1748571945108,0.21700114,105990.0,105980.0,1.54322918]
[1748571945330,0.20756656,105990.0,105980.0,1.54322918]
[1748571946726,0.20756656,105990.0,105980.0,1.54322741]
[1748571947282,0.19813189,105990.0,105980.0,1.53379185]
[1748571948058,0.18869704,105990.0,105980.0,1.33564135]
[1748571948271,0.18869704,105990.0,105980.0,1.34507709]
[1748571948699,0.18869704,105990.0,105980.0,1.33564135]
[1748571948917,0.18869704,105990.0,105980.0,0.59055635]
[1748571949135,0.18869704,105990.0,105980.0,0.7663315]
[1748571949366,0.18869704,105990.0,105980.0,0.7186075]
[1748571949794,0.18869704,105990.0,105980.0,0.3186075]
[1748571950009,0.18869704,105990.0,105980.0,0.3186475]
[1748571950220,0.18869704,105990.0,105980.0,0.7186475]
[1748571951157,0.18869704,105990.0,105980.0,0.71864797]
[1748571951831,0.18869704,105990.0,105980.0,0.73504797]
[1748571952042,0.18869704,105990.0,105980.0,0.76028371]
[1748571952884,0.18869704,105990.0,105980.0,0.94899856]
[1748571953102,0.19813171,105990.0,105980.0,0.98241062]
[1748571953329,0.19813171,105990.0,105980.0,0.99184609]
[1748571955298,0.19813171,105990.0,105980.0,0.99184695]
[1748571958662,0.19813171,105990.0,105980.0,0.98241148]
[1748571959544,0.19813171,105990.0,105980.0,0.9666131]
[1748571960638,0.18869704,105990.0,105980.0,0.7917553]
[1748571961108,0.18869704,105990.0,105980.0,0.80119104]
[1748571961751,0.20469704,105990.0,105980.0,0.16443595]
[1748571961997,0.18869704,105990.0,105980.0,0.32131595]
[1748571962214,0.18869704,105990.0,105980.0,0.72131595]
[1748571962436,0.18869704,105990.0,105980.0,0.72131767]
[1748571963090,0.18869704,105990.0,105980.0,0.71815145]
[1748571963792,0.18869704,105990.0,105980.0,0.72131921]
[1748571964006,0.18869704,105990.0,105980.0,0.71815145]
[1748571964217,0.18869704,105990.0,105980.0,0.71393395]
[1748571964456,0.18869704,105990.0,105980.0,0.67117395]
[1748571964885,0.18869704,105990.0,105980.0,0.55705395]
[1748571965106,0.20499704,105990.0,105980.0,0.15705395]
[1748571965322,0.20499704,105990.0,105980.0,0.29378395]
[1748571965555,0.20499704,105990.0,105980.0,0.15705395]
[1748571965783,0.20499704,105990.0,105980.0,0.55705395]
[1748571966443,0.20499704,105990.0,105980.0,0.56444682]
[1748571967074,0.22039704,105990.0,105980.0,0.56444682]
[1748571968461,0.20499704,105990.0,105980.0,0.56444682]
[1748571968643,0.18869704,105990.0,105980.0,0.32515981]
[1748571969284,0.18869704,105990.0,105980.0,0.72832828]
[1748571969636,0.18869704,105990.0,105980.0,0.72515981]
[1748571971099,0.21999704,105990.0,105980.0,0.56127881]
[1748571972147,0.21999704,105990.0,105980.0,0.16127881]
[1748571972643,0.21999704,105990.0,105980.0,0.56127881]
[1748571975098,0.21999704,105990.0,105980.0,0.16444791]
[1748571975306,0.21999704,105990.0,105980.0,0.0691691]
[1748571975527,0.21999704,105990.0,105980.0,0.066]
[1748571975744,0.21999704,105990.0,105980.0,0.06916957]
[1748571976415,0.21999704,105990.0,105980.0,0.00916957]
[1748571976857,0.51779704,105990.0,105980.0,0.006]
[1748571977751,0.51779704,105990.0,105980.0,0.003]
[1748571978625,0.23015041,105980.0,105970.0,0.06786547]
[1748571978848,0.23015041,105980.0,105970.0,0.0646959]
[1748571979682,0.23015041,105980.0,105970.0,0.0676959]
[1748571979913,0.23015041,105980.0,105970.0,0.06818861]
[1748571980131,0.23015041,105980.0,105970.0,0.07118861]
[1748571995691,0.41488436,105980.0,105970.0,0.07118861]
[1748571995897,0.41488436,105980.0,105970.0,0.06518861]
[1748571996107,0.41488436,105980.0,105970.0,0.06818861]
[1748571996331,0.41488436,105980.0,105970.0,0.07118861]
[1748571996570,0.41488436,105980.0,105970.0,0.06818861]
[1748571996772,0.41488436,105980.0,105970.0,0.06918861]
[1748571997381,0.41488436,105980.0,105970.0,0.06618861]
[1748571997623,0.71244436,105980.0,105970.0,0.06618861]
[1748571998032,0.62139041,105980.0,105970.0,0.06618861]
[1748572001743,0.71244436,105980.0,105970.0,0.06618861]
[1748572014956,0.71224436,105980.0,105970.0,0.06618861]
[1748572015195,0.62119041,105980.0,105970.0,0.06618861]
[1748572025025,0.32383041,105980.0,105970.0,0.06618861]
[1748572025251,0.62103041,105980.0,105970.0,0.06618861]
[1748572026345,0.62079041,105980.0,105970.0,0.06618861]
[1748572028019,0.23015041,105980.0,105970.0,0.06618861]
[1748572028223,0.58875041,105980.0,105970.0,0.06618861]
[1748572028837,0.62075041,105980.0,105970.0,0.06618861]
[1748572031676,0.62075041,105980.0,105970.0,0.00208799]
[1748572032149,0.32359041,105980.0,105970.0,0.00208799]
[1748572032359,0.62071041,105980.0,105970.0,0.00208799]
[1748572043095,0.58855041,105980.0,105970.0,0.00208799]
[1748572043967,0.60375041,105980.0,105970.0,0.00208799]
[1748572044611,0.61995041,105980.0,105970.0,0.00208799]
[1748572051228,0.32299041,105980.0,105970.0,0.00208799]
[1748572051437,0.61983041,105980.0,105970.0,0.00208799]
[1748572051646,0.60363041,105980.0,105970.0,0.00208799]
[1748572052524,0.58843041,105980.0,105970.0,0.00208799]
[1748572057723,0.61963041,105980.0,105970.0,0.00208799]
[1748572060314,0.61927041,105980.0,105970.0,0.00208799]
[1748572066531,0.71032436,105980.0,105970.0,0.00208799]
[1748572071245,0.71016436,105980.0,105970.0,0.00208799]
[1748572072412,0.58791041,105980.0,105970.0,0.00208799]
[1748572074717,0.19815041,105980.0,105970.0,0.00208799]
[1748572074925,0.58787041,105980.0,105970.0,0.00208799]
[1748572076216,0.58787041,105980.0,105970.0,0.01868799]
[1748572076734,0.58787041,105980.0,105970.0,0.00208799]
[1748572077154,0.49467041,105980.0,105970.0,0.01768799]
[1748572077348,0.58783041,105980.0,105970.0,0.01768799]
[1748572080362,0.29111041,105980.0,105970.0,0.03388799]
[1748572080615,0.58755041,105980.0,105970.0,0.03388799]
[1748572080850,0.19815041,105980.0,105970.0,0.03388799]
[1748572081052,0.58755041,105980.0,105970.0,0.03388799]
[1748572083091,0.19815041,105980.0,105970.0,0.03388799]
[1748572083322,0.58751041,105980.0,105970.0,0.03388799]
[1748572089064,0.58751041,105980.0,105970.0,0.01768799]
[1748572090731,0.58751041,105980.0,105970.0,0.03368799]
[1748572091502,0.19815041,105980.0,105970.0,0.01768799]
[1748572091743,0.49443041,105980.0,105970.0,0.03328799]
[1748572091977,0.19815041,105980.0,105970.0,0.03328799]
[1748572097850,0.19815041,105980.0,105970.0,0.00208799]
[1748572098067,0.23035041,105980.0,105970.0,0.00208799]
[1748572099197,0.22979432,105980.0,105970.0,0.00208799]
[1748572102353,0.52591432,105980.0,105970.0,0.00208799]
[1748572111027,0.61696827,105980.0,105970.0,0.00208799]
[1748572117470,0.70968827,105980.0,105970.0,0.00208799]
[1748572118747,1.04968827,105980.0,105970.0,0.00208799]
[1748572121231,0.66084827,105980.0,105970.0,0.00208799]
[1748572121472,1.04944827,105980.0,105970.0,0.00208799]
[1748572127780,1.04936827,105980.0,105970.0,0.00208799]
[1748572128402,0.66084827,105980.0,105970.0,0.00208799]
[1748572128616,1.01716827,105980.0,105970.0,0.00208799]
[1748572128822,0.92611432,105980.0,105970.0,0.01768799]
[1748572130090,0.53759432,105980.0,105970.0,0.00208799]
[1748572130291,0.92607432,105980.0,105970.0,0.00208799]
[1748572131538,0.94167432,105980.0,105970.0,0.00208799]
[1748572133517,0.95697432,105980.0,105970.0,0.00208799]
[1748572135402,0.92607432,105980.0,105970.0,0.00208799]
[1748572137083,0.63031432,105980.0,105970.0,0.00208799]
[1748572137506,0.92599432,105980.0,105970.0,0.00208799]
[1748572142456,0.95709432,105980.0,105970.0,0.00208799]
[1748572142918,0.61709432,105980.0,105970.0,0.00208799]
[1748572148254,0.58599432,105980.0,105970.0,0.00208799]
[1748572153027,0.61809432,105980.0,105970.0,0.00208799]
[1748572155573,0.60229432,105980.0,105970.0,0.00208799]
[1748572155782,0.58599432,105980.0,105970.0,0.00208799]
[1748572161194,0.92599432,105980.0,105970.0,0.00208799]
[1748572161848,0.95799432,105980.0,105970.0,0.00208799]
[1748572164824,0.64581432,105980.0,105970.0,0.00208799]
[1748572165034,0.92563432,105980.0,105970.0,0.00208799]
[1748572168699,0.58535432,105980.0,105970.0,0.00208799]
[1748572168924,0.58535432,105980.0,105970.0,0.01778799]
[1748572169567,0.19759432,105980.0,105970.0,0.03358799]
[1748572169775,0.29007432,105980.0,105970.0,0.03358799]
[1748572169979,0.58535432,105980.0,105970.0,0.03358799]
[1748572174706,0.19759432,105980.0,105970.0,0.03358799]
[1748572174918,0.49279432,105980.0,105970.0,0.03358799]
[1748572176884,0.50879432,105980.0,105970.0,0.00208799]
[1748572177144,0.61624827,105980.0,105970.0,0.00208799]
[1748572177359,0.95624827,105980.0,105970.0,0.00208799]
[1748572177805,0.95624827,105980.0,105970.0,0.00108799]
[1748572178026,0.95624827,105980.0,105970.0,0.00208799]
[1748572178236,0.95624827,105980.0,105970.0,0.00108799]
[1748572178668,0.95724827,105980.0,105970.0,0.00108799]
[1748572178892,0.95824827,105980.0,105970.0,0.00108799]
[1748572185350,0.96841704,105980.0,105970.0,0.00108799]
[1748572196263,0.96817704,105980.0,105970.0,0.00108799]
[1748572200945,0.96813704,105980.0,105970.0,0.00108799]
[1748572201368,1.06041704,105980.0,105970.0,0.00108799]
[1748572208672,1.04389704,105980.0,105970.0,0.00108799]
[1748572208885,0.73285704,105980.0,105970.0,0.00108799]
[1748572209101,1.02765704,105980.0,105970.0,0.03228799]
[1748572209759,1.02765704,105980.0,105970.0,0.01608799]
[1748572210191,1.02765704,105980.0,105970.0,0.00108799]
[1748572211896,0.53959432,105980.0,105970.0,0.01618799]
[1748572212104,0.63163432,105980.0,105970.0,0.03148799]
[1748572216054,0.19959432,105980.0,105970.0,0.03148799]
[1748572216267,0.49431432,105980.0,105970.0,0.03148799]
[1748572218277,0.49431432,105980.0,105970.0,0.00108799]
[1748572220430,0.49431432,105980.0,105970.0,0.01748799]
[1748572222605,0.19959432,105980.0,105970.0,0.01748799]
[1748572222829,0.49423432,105980.0,105970.0,0.01748799]
[1748572225605,0.49423432,105980.0,105970.0,0.00108799]
[1748572227929,0.52483432,105980.0,105970.0,0.00108799]
[1748572228144,0.95588827,105980.0,105970.0,0.00108799]
[1748572234258,0.96588827,105980.0,105970.0,0.00108799]
[1748572234697,1.01588827,105980.0,105970.0,0.00108799]
[1748572235224,1.03058827,105980.0,105970.0,0.00108799]
[1748572235918,1.02958827,105980.0,105970.0,0.00108799]
[1748572236354,1.03458827,105980.0,105970.0,0.00108799]
[1748572236781,1.05212912,105980.0,105970.0,0.00108799]
[1748572236994,0.18880392,105930.0,105920.0,0.03417455]
[1748572237214,0.19824393,105930.0,105920.0,0.04314146]
[1748572237447,0.19824393,105930.0,105920.0,0.0399671]
[1748572237666,0.19824393,105930.0,105920.0,0.03114755]
[1748572238520,0.19824393,105930.0,105920.0,0.03414755]
[1748572238770,0.19824393,105930.0,105920.0,0.03614755]
[1748572240268,0.17324393,105930.0,105920.0,0.03614755]
[1748572249253,0.17324393,105930.0,105920.0,0.02084755]
[1748572251368,0.17324393,105930.0,105920.0,0.00514755]
[1748572253767,0.20494393,105930.0,105920.0,0.00514755]
[1748572254478,0.19894393,105930.0,105920.0,0.00514755]
[1748572256808,0.29082393,105930.0,105920.0,0.00514755]
[1748572257045,0.38187788,105930.0,105920.0,0.00514755]
[1748572258166,0.3790916,105930.0,105920.0,0.00514755]
[1748572258586,0.3790916,105930.0,105920.0,0.00314755]
[1748572258800,0.3790916,105930.0,105920.0,0.00014755]
[1748572259016,0.3790916,105930.0,105920.0,0.00114755]
[1748572259665,0.7190916,105930.0,105920.0,0.00114755]
[1748572259885,0.50445765,105930.0,105920.0,0.02094755]
[1748572260107,0.50445765,105930.0,105920.0,0.03624755]
[1748572260330,0.50445765,105930.0,105920.0,0.03224755]
[1748572260563,0.16445765,105930.0,105920.0,0.03224755]
[1748572260811,0.16445765,105930.0,105920.0,1.57118282]
[1748572260812,0.00943966,105930.0,105920.0,1.57118282]
[1748572261023,0.18878375,105950.0,105940.0,0.0311]
[1748572261234,0.18878375,105950.0,105940.0,1.59111232]
[1748572261451,0.14878375,105950.0,105940.0,0.3862318]
[1748572261671,0.14878375,105950.0,105940.0,0.2825028]
[1748572262139,0.01887566,105950.0,105940.0,0.445678]
[1748572262346,0.02831389,105950.0,105940.0,2.49543901]
[1748572262558,0.02831389,105950.0,105940.0,2.30232401]
[1748572263247,0.02831389,105950.0,105940.0,3.23723501]
[1748572263469,0.0283138,105950.0,105940.0,3.20697001]
[1748572263684,0.0283138,105950.0,105940.0,2.9955505]
[1748572263685,0.03775203,105950.0,105940.0,2.9955505]
[1748572264114,0.01887566,105950.0,105940.0,2.9955505]
[1748572264373,0.01887566,105950.0,105940.0,3.4595065]
[1748572264589,0.18873266,105970.0,105940.0,3.4595065]
[1748572264590,0.20760565,105970.0,105960.0,0.86205632]
[1748572264798,0.20760565,105970.0,105960.0,0.7643598]
[1748572265009,0.20760565,105970.0,105960.0,0.2880558]
[1748572265890,0.20760565,105970.0,105960.0,0.28820335]
[1748572266513,0.20960565,105970.0,105960.0,0.28820335]
[1748572266720,0.21060565,105970.0,105960.0,0.28820335]
[1748572268426,0.21060565,105970.0,105960.0,0.28842045]
[1748572269065,0.21060565,105970.0,105960.0,0.48660835]
[1748572269331,0.22004174,105970.0,105960.0,0.50548276]
[1748572269609,0.22004174,105970.0,105960.0,0.49604569]
[1748572269829,0.01243583,105970.0,105960.0,0.60659974]
[1748572270039,0.01243583,105970.0,105960.0,6.14933564]
[1748572270040,0.003,105970.0,105960.0,6.14933564]
[1748572270276,0.0028749,105970.0,105960.0,6.15249343]
[1748572270480,0.03118353,105970.0,105960.0,3.28268843]
[1748572270696,0.02174708,105970.0,105960.0,3.27953064]
[1748572270935,0.02074708,105970.0,105960.0,1.12764564]
[1748572271144,0.01887218,105970.0,105960.0,4.61552774]
[1748572271360,0.01887218,105970.0,105960.0,4.63096464]
[1748572271571,0.03774499,105970.0,105960.0,4.63396464]
[1748572271781,0.02830854,105970.0,105960.0,4.63396464]
[1748572272015,0.02830854,105970.0,105960.0,4.90194064]
[1748572272249,0.20760547,105970.0,105960.0,0.74276445]
[1748572272499,0.20760547,105970.0,105960.0,0.5576986]
[1748572272740,0.20760547,105970.0,105960.0,0.57223945]
[1748572272943,0.20760547,105970.0,105960.0,0.57723945]
[1748572273153,0.20760547,105970.0,105960.0,0.48555945]
[1748572273337,0.20760547,105970.0,105960.0,0.14555945]
[1748572273577,0.20760547,105970.0,105960.0,0.11395945]
[1748572273782,0.20760547,105970.0,105960.0,0.10895945]
[1748572273993,0.20760547,105970.0,105960.0,0.11395945]
[1748572274419,0.20760547,105970.0,105960.0,0.0944186]
[1748572274627,0.20760547,105970.0,105960.0,0.00336465]
[1748572275059,0.20760547,105970.0,105960.0,0.00036465]
[1748572275486,0.20760547,105970.0,105960.0,0.00236465]
[1748572276339,0.20760547,105970.0,105960.0,0.00536465]
[1748572284786,0.23790547,105970.0,105960.0,0.00536465]
[1748572285918,0.23790547,105970.0,105960.0,0.00236465]
[1748572286402,0.23790547,105970.0,105960.0,0.00536465]
[1748572286850,0.23790547,105970.0,105960.0,0.00236465]
[1748572287541,0.23790547,105970.0,105960.0,0.00036465]
[1748572287992,0.23890547,105970.0,105960.0,0.00036465]
[1748572288533,0.66995942,105970.0,105960.0,0.00036465]
[1748572289991,1.15785942,105970.0,105960.0,0.00036465]
[1748572291834,1.15685942,105970.0,105960.0,0.00036465]
[1748572292064,1.15885942,105970.0,105960.0,0.00036465]
[1748572293392,1.15985942,105970.0,105960.0,0.00036465]
[1748572298865,1.16985942,105970.0,105960.0,0.00036465]
[1748572299304,1.19818742,105970.0,105960.0,0.00036465]
[1748572300384,1.16985942,105970.0,105960.0,0.00036465]
[1748572301975,0.68195942,105970.0,105960.0,0.00036465]
[1748572303311,0.70090603,105970.0,105960.0,0.00036465]
[1748572308560,0.99474603,105970.0,105960.0,0.00036465]
[1748572309622,0.70090603,105970.0,105960.0,0.00036465]
[1748572309835,1.08622603,105970.0,105960.0,0.00036465]
[1748572310509,0.78242603,105970.0,105960.0,0.00036465]
[1748572310726,0.67195942,105970.0,105960.0,0.00036465]
[1748572310938,1.05727942,105970.0,105960.0,0.00036465]
[1748572311175,0.64165942,105970.0,105960.0,0.00036465]
[1748572311436,0.64165942,105970.0,105960.0,0.03236465]
[1748572311437,0.21060547,105970.0,105960.0,0.03236465]
[1748572313031,0.21060547,105970.0,105960.0,0.00036465]
[1748572316000,0.59588547,105970.0,105960.0,0.00036465]
[1748572316210,0.21060547,105970.0,105960.0,0.00036465]
[1748572316425,0.59588547,105970.0,105960.0,0.00036465]
[1748572316639,0.30212547,105970.0,105960.0,0.00036465]
[1748572316882,0.59588547,105970.0,105960.0,0.00036465]
[1748572319900,0.59588547,105970.0,105960.0,0.01566465]
[1748572321682,0.21060547,105970.0,105960.0,0.01566465]
[1748572321896,0.21060547,105970.0,105960.0,0.03106465]
[1748572322750,0.21060547,105970.0,105960.0,0.1221186]
[1748572324085,0.20960547,105970.0,105960.0,0.1221186]
[1748572324302,0.20760547,105970.0,105960.0,0.1231186]
[1748572324532,0.20760547,105970.0,105960.0,0.1241186]
[1748572324748,0.20760547,105970.0,105960.0,0.1231186]
[1748572324977,0.20760547,105970.0,105960.0,0.1241186]
[1748572327208,0.20760547,105970.0,105960.0,0.03306465]
[1748572329239,0.50120547,105970.0,105960.0,0.00236465]
[1748572329456,0.53210547,105970.0,105960.0,0.00236465]
[1748572330146,0.62315942,105970.0,105960.0,0.00236465]
[1748572337607,0.96315942,105970.0,105960.0,0.00236465]
[1748572338255,0.98208929,105970.0,105960.0,0.00236465]
[1748572339123,0.68848929,105970.0,105960.0,0.00236465]
[1748572339378,0.68848929,105970.0,105960.0,0.01706465]
[1748572339379,0.22653534,105970.0,105960.0,0.01706465]
[1748572339581,0.20760547,105970.0,105960.0,0.03236465]
[1748572339850,0.20760547,105970.0,105960.0,0.03336465]
[1748572340069,0.20760547,105970.0,105960.0,0.03236465]
[1748572340286,0.20960547,105970.0,105960.0,0.03136465]
[1748572340509,0.21060547,105970.0,105960.0,0.03136465]
[1748572341642,0.21060547,105970.0,105960.0,0.00036465]
[1748572345768,0.22937627,105970.0,105960.0,0.00036465]
[1748572346848,0.35113022,105970.0,105960.0,0.00036465]
[1748572347064,0.69113022,105970.0,105960.0,0.00036465]
[1748572349454,1.17903022,105970.0,105960.0,0.00036465]
[1748572354637,1.56371022,105970.0,105960.0,0.00036465]
[1748572363843,1.27027022,105970.0,105960.0,0.00036465]
[1748572364077,1.14833022,105970.0,105960.0,0.01586465]
[1748572364292,1.53293022,105970.0,105960.0,0.03216465]
[1748572364522,1.23957022,105970.0,105960.0,0.01586465]
[1748572364732,1.53293022,105970.0,105960.0,0.01586465]
[1748572364946,1.53293022,105970.0,105960.0,0.00036465]
[1748572365169,1.23957022,105970.0,105960.0,0.00036465]
[1748572365554,0.69850547,105970.0,105960.0,0.03196465]
[1748572367155,0.69850547,105970.0,105960.0,0.01556465]
[1748572367354,1.45421942,105970.0,105960.0,0.00036465]
[1748572368428,1.47271085,105970.0,105960.0,0.00036465]
[1748572370439,1.44141085,105970.0,105960.0,0.00036465]
[1748572370690,1.42306547,105970.0,105960.0,0.01626465]
[1748572370907,1.42306547,105970.0,105960.0,0.03266465]
[1748572372092,1.42306547,105970.0,105960.0,0.00036465]
[1748572372301,1.42306547,105970.0,105960.0,0.01686465]
[1748572372485,0.69850547,105970.0,105960.0,0.05006465]
[1748572372688,0.99182547,105970.0,105960.0,0.05006465]
[1748572375056,0.69850547,105970.0,105960.0,0.05006465]
[1748572375274,0.99182547,105970.0,105960.0,0.05006465]
[1748572375508,0.69850547,105970.0,105960.0,0.05006465]
[1748572375723,0.99182547,105970.0,105960.0,0.05006465]
[1748572375956,0.99178547,105970.0,105960.0,0.05006465]
[1748572376434,0.02187281,105970.0,105960.0,0.05006465]
[1748572376666,0.18875915,106000.0,105960.0,4.5013107]
[1748572376964,0.18875915,106000.0,105990.0,0.0161]
[1748572377206,0.18875915,106000.0,105990.0,0.0316]
[1748572377928,0.2075468,106000.0,105990.0,0.016]
[1748572378150,0.2075468,106000.0,105990.0,0.10941242]
[1748572378395,0.2075468,106000.0,105990.0,0.12581242]
[1748572378610,0.2075468,106000.0,105990.0,0.32394431]
[1748572378823,0.2075468,106000.0,105990.0,0.12345395]
[1748572379039,0.2075468,106000.0,105990.0,0.12581237]
[1748572379507,0.2075468,106000.0,105990.0,0.84722341]
[1748572379757,0.2075468,106000.0,105990.0,0.70069099]
[1748572380236,0.2075468,106000.0,105990.0,0.69869099]
[1748572380486,0.2075468,106000.0,105990.0,0.43255399]
[1748572380736,0.02830027,106000.0,105990.0,0.44198884]
[1748572380969,0.03773405,106000.0,105990.0,0.45174466]
[1748572381191,0.03773396,106000.0,105990.0,0.43287505]
[1748572381400,0.04716792,106000.0,105990.0,0.4423099]
[1748572381657,0.04716792,106000.0,105990.0,0.43287505]
[1748572382134,0.03773396,106000.0,105990.0,0.45174466]
[1748572382344,0.03773396,106000.0,105990.0,0.47018109]
[1748572382582,0.02830018,106000.0,105990.0,0.48472158]
[1748572382807,0.03773396,106000.0,105990.0,0.48472176]
[1748572383269,0.03773396,106000.0,105990.0,0.47528709]
[1748572383496,0.03773396,106000.0,105990.0,0.475287]
[1748572384194,0.02830018,106000.0,105990.0,0.48472185]
[1748572384506,0.03773396,106000.0,105990.0,0.46585233]
[1748572384752,0.03773396,106000.0,105990.0,0.34944933]
[1748572384985,0.04716783,106000.0,105990.0,0.66789194]
[1748572385230,0.04716783,106000.0,105990.0,1.04083318]
[1748572385464,0.04716783,106000.0,105990.0,1.05970261]
[1748572385465,0.03773396,106000.0,105990.0,1.05970261]
[1748572385946,0.21697942,106000.0,105990.0,0.79576044]
[1748572386197,0.51442662,106000.0,105990.0,0.00432106]
[1748572386678,0.63638057,106000.0,105990.0,0.00432106]
[1748572386943,0.97638057,106000.0,105990.0,0.00432106]
[1748572387662,0.97638057,106000.0,105990.0,0.00232106]
[1748572388967,1.36804769,106000.0,105990.0,0.00232106]
[1748572389383,1.36804769,106000.0,105990.0,0.00032106]
[1748572389617,1.36768769,106000.0,105990.0,0.00032106]
[1748572390280,1.75935481,106000.0,105990.0,0.00032106]
[1748572390530,1.36768769,106000.0,105990.0,0.00032106]
[1748572396330,1.85558769,106000.0,105990.0,0.00032106]
[1748572397008,0.20760529,105970.0,105960.0,0.01936465]
[1748572397273,0.90483241,105970.0,105960.0,0.01936465]
[1748572398807,0.51316529,105970.0,105960.0,0.01936465]
[1748572399673,0.52299773,105970.0,105960.0,0.01936465]
[1748572403851,0.91466485,105970.0,105960.0,0.01936465]
[1748572404080,0.94566485,105970.0,105960.0,0.01936465]
[1748572404320,0.94566485,105970.0,105960.0,0.01836465]
[1748572404766,1.28566485,105970.0,105960.0,0.01836465]
[1748572406102,1.48736677,105970.0,105960.0,0.01836465]
[1748572406348,2.24948677,105970.0,105960.0,0.01836465]
[1748572406550,2.27781577,105970.0,105960.0,0.01836465]
[1748572407428,2.27881577,105970.0,105960.0,0.01836465]
[1748572407709,2.27781577,105970.0,105960.0,0.01836465]
[1748572407924,2.27981577,105970.0,105960.0,0.01836465]
[1748572408351,2.26998333,105970.0,105960.0,0.01836465]
[1748572408783,2.27398333,105970.0,105960.0,0.01836465]
[1748572409248,1.88231621,105970.0,105960.0,0.01836465]
[1748572409461,1.98087621,105970.0,105960.0,0.01836465]
[1748572409675,1.65165536,105970.0,105960.0,0.01836465]
[1748572409889,1.90641536,105970.0,105960.0,0.01836465]
[1748572410112,1.60165536,105970.0,105960.0,0.01836465]
[1748572410339,1.90649536,105970.0,105960.0,0.01836465]
[1748572411206,1.50317536,105970.0,105960.0,0.01836465]
[1748572411422,1.60093536,105970.0,105960.0,0.01836465]
[1748572411635,1.51406824,105970.0,105960.0,0.01836465]
[1748572411852,1.90565536,105970.0,105960.0,0.01836465]
[1748572412280,1.95565536,105970.0,105960.0,0.01836465]
[1748572413399,2.34732248,105970.0,105960.0,0.01836465]
[1748572413612,1.95565536,105970.0,105960.0,0.01836465]
[1748572416377,2.37186333,105970.0,105960.0,0.01836465]
[1748572417030,1.58852909,105970.0,105960.0,0.01836465]
[1748572417261,2.37186333,105970.0,105960.0,0.01836465]
[1748572418600,2.36186333,105970.0,105960.0,0.01836465]
[1748572418833,2.37312739,105970.0,105960.0,0.01836465]
[1748572419053,2.32312739,105970.0,105960.0,0.01836465]
[1748572420645,2.32312887,105970.0,105960.0,0.01836465]
[1748572422831,1.53979463,105970.0,105960.0,0.01836465]
[1748572423119,2.32324887,105970.0,105960.0,0.01836465]
[1748572425283,1.93158175,105970.0,105960.0,0.01836465]
[1748572425505,1.19731463,105970.0,105960.0,0.01836465]
[1748572425736,1.98071621,105970.0,105960.0,0.01836465]
[1748572425949,2.37305583,105970.0,105960.0,0.01836465]
[1748572430787,2.06781583,105970.0,105960.0,0.01836465]
[1748572430997,2.37249583,105970.0,105960.0,0.01836465]
[1748572431861,1.08050824,105970.0,105960.0,0.01836465]
[1748572432085,1.87487161,105970.0,105960.0,0.01836465]
[1748572432530,1.48302824,105970.0,105960.0,0.01836465]
[1748572432750,1.87503161,105970.0,105960.0,0.03386465]
[1748572433187,1.92503161,105970.0,105960.0,0.01836465]
[1748572433438,2.31703498,105970.0,105960.0,0.01836465]
[1748572433666,1.92503161,105970.0,105960.0,0.01836465]
[1748572434311,1.52251161,105970.0,105960.0,0.01836465]
[1748572434532,1.92507161,105970.0,105960.0,0.01836465]
[1748572434758,1.57027161,105970.0,105960.0,0.01836465]
[1748572434967,1.87499161,105970.0,105960.0,0.01836465]
[1748572436696,1.92499161,105970.0,105960.0,0.01836465]
[1748572436907,1.87499161,105970.0,105960.0,0.01836465]
[1748572437384,1.92499161,105970.0,105960.0,0.01836465]
[1748572437820,1.87499161,105970.0,105960.0,0.01836465]
[1748572443391,2.26699498,105970.0,105960.0,0.01836465]
[1748572443620,1.96227498,105970.0,105960.0,0.01836465]
[1748572443835,1.96227498,105970.0,105960.0,0.05056465]
[1748572443836,1.87431161,105970.0,105960.0,0.05056465]
[1748572444561,1.87431161,105970.0,105960.0,0.01836465]
[1748572445222,1.8843726,105970.0,105960.0,0.01836465]
[1748572445457,1.09056923,105970.0,105960.0,0.04866465]
[1748572445672,0.98345429,105970.0,105960.0,0.04866465]
[1748572446114,0.95512529,105970.0,105960.0,0.04866465]
[1748572446338,0.60932529,105970.0,105960.0,0.04866465]
[1748572446588,0.61132529,105970.0,105960.0,0.04866465]
[1748572446833,1.00332866,105970.0,105960.0,0.04866465]
[1748572447280,1.00532866,105970.0,105960.0,0.04866465]
[1748572447962,1.00332866,105970.0,105960.0,0.04866465]
[1748572448174,1.01521487,105970.0,105960.0,0.04866465]
[1748572448884,1.05426545,105970.0,105960.0,0.01836465]
[1748572449162,1.08646545,105970.0,105960.0,0.01836465]
[1748572450433,1.10483045,105970.0,105960.0,0.01836465]
[1748572452987,1.1293713,105970.0,105960.0,0.01836465]
[1748572453654,1.1793713,105970.0,105960.0,0.01836465]
[1748572455348,1.1792113,105970.0,105960.0,0.01836465]
[1748572456418,1.20558118,105970.0,105960.0,0.01836465]
[1748572457296,1.1942798,105970.0,105960.0,0.01836465]
[1748572457966,1.1943998,105970.0,105960.0,0.01836465]
[1748572458175,1.20569954,105970.0,105960.0,0.01836465]
[1748572459336,1.1943998,105970.0,105960.0,0.01836465]
[1748572462432,1.1441598,105970.0,105960.0,0.01836465]